Cogmind - Beta 13 @@@ ROGUE MODE // 2024.07.17 @ 02:55:51 Player: Beef Result: Destroyed by G-50 Soldier with Heavy Laser Performance ------------- Evolutions (5) 2500 Regions Visited (12) 2400 Robots Destroyed (176) 880 Value Destroyed (6454) 6454 Prototype IDs (16) 320 Alien Tech Used (0) 0 Bonus (6123) 6123 TOTAL SCORE: 18677 Bonus ------- Triggered High Security 500 High Alert Combat Kills 2242 Follower Combat Kills 2967 Network Hubs Disabled 200 Built Enhanced Grunts 300 A7 Reached Mainframe 300 Met R17 at Cetus 500 Friendly Fire -886 Cogmind --------- Core Integrity 0/1000 Matter 255/300 Energy 300/300 System Corruption 8% Temperature Cool (9) Movement Core (400) Ox7 Location -5/Factory Parts ------- > --- POWER (1) -------- Angular Momentum Engine > --- PROPULSION (4) --- (None) > --- UTILITY (10) ----- Improved Heat Sink Improved Signal Interpreter Terrain Scan Processor Improved Melee Analysis Suite Target Analyzer Core Analyzer Microactuators Advanced Hacking Suite System Shield > --- WEAPON (2) ------- Chainsword Heavy Pick > --- INVENTORY (5) ---- Neutrino Core Improved Corruption Screen Tesla Rifle Improved Remote Datajack Shock Maul Peak State ------------ > --- POWER ------------ Light Angular Momentum Engine > --- PROPULSION ------- Flexi-carbon Leg Flexi-carbon Leg Armored Leg Enhanced Flexi-carbon Leg > --- UTILITY ---------- Large Storage Unit Improved Melee Analysis Suite Target Analyzer Actuator Array Centrium Medium Armor Plating Hacking Suite Advanced Hacking Suite System Shield Improved System Shield Improved System Restoration Module > --- WEAPON ----------- Axe Chainsword > --- INVENTORY -------- Micro Fission Core Micro Fission Core Improved Sensor Array Improved Signal Interpreter Kinecellerator Heavy Beamcaster Improved Concussive RPG Remote Datajack Power Maul Shock Maul [Rating: 80] Favorites ----------- Power Heavy Ion Engine Engine Heavy Ion Engine Power Core Nuclear Core Reactor Light Antimatter Reactor Propulsion Flexi-carbon Leg Treads Light Treads Leg Flexi-carbon Leg Wheel Compact Wheel Hover Unit Antigrav System Utility Large Storage Unit Device Improved Sensor Array Storage Large Storage Unit Processor Improved Melee Analysis Suite Hackware System Shield Protection Medium Insulated Plating Weapon Chainsword Energy Gun Heavy EM Pulse Gun Ballistic Gun Gauss Rifle Launcher Rocket Array Special Weapon Remote Datajack Impact Weapon Power Maul Slashing Weapon Chainsword Piercing Weapon Heavy Pick Build | -11 -10 -9 -8 -7 -6 -6 -6 -6 -6 -6 -6 -5 ------- Run | Yrd Mat Mat Mat Fac Fac Was Fac Ext Cet Arc Hub Fac Slots Evolved 10 | . . 2 2 2 2 . . . . . . 2 Power . | . . . . . . . . . . . . . Propulsion 2 | . . . 2 . . . . . . . . . Utility 8 | . . 2 . 2 2 . . . . . . 2 Weapon . | . . . . . . . . . . . . . Parts Attached 204 | 9 . 28 34 36 11 5 1 9 8 . 9 54 Power 25 | 1 . 4 2 6 . 3 . 1 . . 1 7 Engine 14 | 1 . 4 2 2 . . . . . . 1 4 Core 10 | . . . . 4 . 3 . 1 . . . 2 Reactor 1 | . . . . . . . . . . . . 1 Propulsion 75 | 4 . 9 15 17 3 2 . 5 3 . 6 11 Treads 9 | 2 . 1 1 3 . . . . . . . 2 Leg 42 | 2 . 7 10 4 . 1 . 5 3 . 6 4 Wheel 15 | . . . . 10 3 1 . . . . . 1 Hover 9 | . . 1 4 . . . . . . . . 4 Flight . | . . . . . . . . . . . . . Utility 54 | 1 . 10 4 5 5 . 1 1 2 . . 25 Device 23 | . . 5 3 2 1 . 1 . . . . 11 Storage 5 | 1 . 2 . . . . . . . . . 2 Processor 10 | . . . . 2 3 . . . . . . 5 Hackware 6 | . . . 1 1 . . . . 2 . . 2 Protection 10 | . . 3 . . 1 . . 1 . . . 5 Artifact . | . . . . . . . . . . . . . Weapon 50 | 3 . 5 13 8 3 . . 2 3 . 2 11 Energy Gun 14 | 1 . 2 5 1 . . . . 3 . . 2 Energy Cannon . | . . . . . . . . . . . . . Ballistic Gun 15 | 2 . 3 5 4 1 . . . . . . . Ballistic Cannon . | . . . . . . . . . . . . . Launcher 7 | . . . 1 2 . . . 2 . . 2 . Special Weapon 1 | . . . . . . . . . . . . 1 Impact Weapon 5 | . . . 2 . 1 . . . . . . 2 Slashing Weapon 6 | . . . . 1 1 . . . . . . 4 Piercing Weapon 2 | . . . . . . . . . . . . 2 Special Melee Weapon . | . . . . . . . . . . . . . Unidentified Prototypes 9 | . . 1 2 . . 1 . . 2 . . 3 Corrupted Parts 2 | . . . 1 . . . . . . . . 1 System Corruption 5 | . . . 3 . . . . . . . . 2 Parts Lost 83 | . 1 8 16 17 . . . 1 . . 12 28 Power 12 | . . 2 2 4 . . . . . . 1 3 Propulsion 38 | . . 1 7 11 . . . 1 . . 4 14 Utility 20 | . . 3 3 . . . . . . . 4 10 Weapon 13 | . 1 2 4 2 . . . . . . 3 1 Highest Loss Streak 11 | . 1 4 11 5 . . . 1 . . 10 8 To Critical Strikes 1 | . . . . . . . . 1 . . . . Average Slot Usage (%) 92 | . 84 88 95 96 95 100 100 99 100 100 92 80 Engine 4 | . 14 10 9 4 . . . . . . . 2 Core 2 | . . . . 2 6 6 6 6 6 6 4 . Treads 3 | . 28 6 . 4 11 . . . . . . 2 Leg 13 | . . 14 27 12 . . . 13 26 26 24 10 Wheel 6 | . . . . 10 14 26 26 12 . . . . Hover 1 | . . . 6 . . . . . . . . 3 Device 6 | . . 12 16 7 4 . 2 5 . . . 7 Storage 7 | . 14 13 9 7 6 6 6 6 6 6 6 3 Processor 13 | . . . . 14 17 26 26 26 20 20 19 17 Hackware 12 | . . . 8 14 13 13 13 13 24 26 24 15 Protection 2 | . . 9 . . 5 6 3 . . . . 2 Energy Gun 4 | . 13 9 9 1 4 . . . 6 13 10 . Ballistic Gun 4 | . 14 10 5 6 1 . . . . . . . Launcher 1 | . . . . 2 2 . . 1 6 . . . Impact Weapon 1 | . . . . 2 2 6 6 5 . . . 1 Slashing Weapon 2 | . . . . . 2 6 6 5 . . . 6 Naked Turns . | . . . . . . . . . . . . . Heaviest Build 51 | 12 12 41 41 41 46 47 40 48 46 35 37 51 Greatest Support 88 | 40 40 40 60 52 58 64 64 80 88 88 88 84 Greatest Overweight (x) 16 | . . 2 1 3 1 . . . . . 1 16 Average Overweight (x) . | . . . . . . . . . . . . . Largest Inventory Capacity 15 | 8 8 15 15 15 15 15 15 15 15 15 15 15 Average Capacity 14 | 7 8 14 15 15 15 15 15 15 15 15 14 11 Most Carried 15 | 4 7 15 15 15 15 15 15 15 15 15 15 14 Average Carried 11 | 2 6 10 10 13 13 14 14 14 14 15 14 7 Final Capacity 15 | 8 8 15 15 15 15 15 15 15 15 15 5 5 Final Carried 15 | 4 7 15 15 14 14 15 15 15 15 15 5 5 Class Distribution -------------------- 21% | Mutant 16% | Hacker-Mutant 14% | Scavenger-Skirmisher 14% | Hacker-Gladiator 10% | Scavenger-Mutant 10% | Scavenger-Gladiator 6% | Scavenger-Assassin 3% | Hacker-Assassin 3% | Commander-Gladiator Dominant Class ---------------- Mutant | -10/Materials Mutant | -9/Materials Mutant | -8/Materials Scavenger-Skirmisher | -7/Factory Scavenger-Skirmisher | -6/Factory Hacker-Gladiator | -6/Waste Hacker-Gladiator | -6/Factory Commander-Gladiator | -6/Extension Hacker-Mutant | -6/Cetus Hacker-Mutant | -6/Archives Hacker-Mutant | -6/Hub_04(d) Hacker-Gladiator | -5/Factory Resources | -11 -10 -9 -8 -7 -6 -6 -6 -6 -6 -6 -6 -5 ----------- Run | Yrd Mat Mat Mat Fac Fac Was Fac Ext Cet Arc Hub Fac Matter Collected 3735 | 205 121 585 589 1126 . 176 . 226 160 9 138 400 Remotely . | . . . . . . . . . . . . . Salvage Created 6721 | . 166 1199 1542 1484 50 85 . 885 5 . 432 873 Parts 366 | . 17 78 69 111 4 3 . 26 . . 20 38 Haulers Intercepted 6 | . . 1 . 2 . . . . . . 2 1 Recyclers Shooed 6 | . 1 . 1 4 . . . . . . . . Parts Field Recycled . | . . . . . . . . . . . . . Retrieved Matter . | . . . . . . . . . . . . . Parts Self-Destructed . | . . . . . . . . . . . . . Prevented . | . . . . . . . . . . . . . Kills | -11 -10 -9 -8 -7 -6 -6 -6 -6 -6 -6 -6 -5 ------- Run | Yrd Mat Mat Mat Fac Fac Was Fac Ext Cet Arc Hub Fac Combat Hostiles Destroyed 120 | . 3 22 25 28 1 . . 21 1 . 7 12 Melee 15 | . . . . 1 1 . . 3 . . . 10 Guns 63 | . 3 22 25 12 . . . . . . . 1 AOE 41 | . . . . 15 . . . 18 1 . 7 . Classes Destroyed 17 | . 3 7 2 3 . . . 2 . . . . Worker 13 | . 1 3 1 5 . . . . . . 2 1 Builder 14 | . . 1 1 7 . . . 1 . . 3 1 Tunneler 1 | . . . . 1 . . . . . . . . Hauler 6 | . . 1 . 2 . . . . . . 2 1 Recycler 12 | . . 2 2 6 . . . 2 . . . . Mechanic 2 | . . . . . . . . 2 . . . . Operator 1 | . . . 1 . . . . . . . . . Watcher 5 | . 1 1 1 1 . . . . 1 . . . Swarmer 15 | . . 4 . 10 . . . 1 . . . . Grunt 60 | . 3 10 18 11 . . . 7 . . 4 7 Brawler 5 | . . 2 . . . . . 2 . . . 1 Duelist 1 | . . 1 . . . . . . . . . . Protector 4 | . . . . 1 . . . 1 . . 2 . Sentry 20 | . . 5 6 3 . . . 5 . . . 1 Specialist 1 | . . . . . . . . 1 . . . . Hunter 4 | . . . 1 . . . . 1 . . . 2 Programmer 7 | . . . . 3 1 . . 2 . . . 1 Cetus Guard 1 | . . . . . . . . . 1 . . . Lightning 1 | . . . . . . . . . . . 1 . Savage 1 | . . . . . . . . 1 . . . . Butcher 2 | . . . . . . . . 2 . . . . Best Kill Streak 23 | . 5 6 13 6 1 . . 23 2 . 11 2 Combat Bots Only 18 | . 3 3 9 5 1 . . 18 1 . 5 2 Max Kills in Single Turn 13 | . 2 2 2 5 1 . . 13 1 . 3 1 Gunslinging . | . . . . . . . . . . . . . Exploded 9 | . . . . 4 . . . 9 1 . 2 . Melee 1 | . . . . 1 1 . . 1 . . . 1 Uniques/NPCs Destroyed . | . . . . . . . . . . . . . Combat | -11 -10 -9 -8 -7 -6 -6 -6 -6 -6 -6 -6 -5 -------- Run | Yrd Mat Mat Mat Fac Fac Was Fac Ext Cet Arc Hub Fac Hostile Shots Fired 1091 | . 28 134 183 312 2 . 9 78 8 15 91 231 Missed 361 | . 11 30 56 99 1 . 6 35 3 5 35 80 Damage Taken 12460 | . 210 1344 2100 2488 12 . 65 616 264 238 1556 3567 Core 2516 | . 26 111 438 404 . . . 97 . 24 412 1004 Absorbed by Shields 196 | . . 48 . . . . . 111 37 . . . Redirected to Shielding 28 | . . 28 . . . . . . . . . . Ignored by Resistances 4 | . . . . . 4 . . . . . . . Regen/Repaired (Parts) 628 | . . . . . . 146 8 290 117 67 . . Core Remaining (%) 60 | 100 89 72 20 42 . . . . . . 37 . Volleys Fired 334 | . 12 103 101 97 2 . . 3 2 2 10 2 Largest 2 | . 2 2 2 2 2 . . 2 2 1 2 2 Hottest 161 | . 60 73 124 125 108 . . 90 90 81 161 125 Shots Fired 602 | . 24 177 199 167 4 . . 6 4 2 14 5 Gun 573 | . 24 177 198 155 4 . . . . 2 8 5 Cannon . | . . . . . . . . . . . . . Launcher 29 | . . . 1 12 . . . 6 4 . 6 . Special . | . . . . . . . . . . . . . Kinetic 338 | . 12 102 88 134 2 . . . . . . . Thermal 161 | . . 37 91 21 2 . . . . 2 8 . Explosive 29 | . . . 1 12 . . . 6 4 . 6 . Electromagnetic 74 | . 12 38 19 . . . . . . . . 5 Robot Hit Streak 17 | . 5 17 17 9 1 . . 4 6 . 3 2 Robot Miss Streak 11 | . 3 4 4 6 2 . . 2 2 2 11 2 Penetration Max 1 | . . . 1 1 . . . . . . . . Secondary Targets 7 | . 2 1 2 2 . . . . . . . . Max Gunslinging Chain 1 | . 1 1 1 1 . . . . . . . . Shots Hit Robots 465 | . 14 106 145 116 4 1 . 8 4 . 8 59 Core Hits 526 | . 9 46 57 103 2 1 . 159 43 . 73 33 Critical Kills 2 | . . . 1 1 . . . . . . . . Critical Parts Destroyed 4 | . . . . 2 . . . . . . . 2 Critical Strikes 22 | . . 1 7 3 . . . . . . . 11 Burn 7 | . . 1 6 . . . . . . . . . Destroy 2 | . . . 1 1 . . . . . . . . Corrupt 1 | . . . . . . . . . . . . 1 Smash 4 | . . . . 2 . . . . . . . 2 Sever 8 | . . . . . . . . . . . . 8 Melee Attacks 113 | . . . 2 25 1 1 . 8 . . . 76 Impact 30 | . . . 2 19 . . . 2 . . . 7 Slashing 80 | . . . . 6 1 1 . 6 . . . 66 Piercing 3 | . . . . . . . . . . . . 3 Sneak Attacks 14 | . . . 1 6 . . . 3 . . . 4 Combat Hostiles 1 | . . . . . . . . 1 . . . . Follow-up Attacks 8 | . . . . . . . . . . . . 8 Damage Inflicted 19784 | . 207 1690 2964 4694 82 86 . 4163 929 . 2369 2600 Guns 6674 | . 207 1593 2769 1935 40 . . . . . 79 51 Cannons . | . . . . . . . . . . . . . Explosions 9875 | . . 97 156 2237 . . . 3866 929 . 2289 301 Melee 3220 | . . . 39 509 42 86 . 296 . . . 2248 Ramming 15 | . . . . 13 . . . 1 . . 1 . Kinetic 4011 | . 104 1022 1380 1487 18 . . . . . . . Thermal 2132 | . . 361 1164 506 22 . . . . . 79 . Explosive 8946 | . . . 156 2179 . . . 3866 929 . 1816 . Electromagnetic 1460 | . 103 307 225 . . . . . . . 473 352 Impact 344 | . . . 39 125 . . . . . . . 180 Slashing 2785 | . . . . 384 42 86 . 296 . . . 1977 Piercing 91 | . . . . . . . . . . . . 91 Highest Corruption 13 | . . 4 4 3 1 1 1 1 1 1 13 9 Average Corruption 2 | . . 4 3 1 1 1 1 1 1 1 3 6 Corruption Purged 6 | . . . . . . . . . . . . 6 Corruption Blocked . | . . . . . . . . . . . . . Effects 100 | . . 27 12 13 . 3 4 3 4 1 6 27 Message Errors 24 | . . 9 1 3 . 1 2 1 2 . 2 3 Matter Fused 17 | . . 5 3 4 . 1 2 . . 1 . 1 Heat Flow Errors 10 | . . 2 1 . . . . 1 1 . 1 4 Energy Discharges 17 | . . 4 4 1 . . . 1 . . 1 6 Parts Rejected 2 | . . . . . . . . . . . . 2 Parts Fused 1 | . . . . . . . . . . . . 1 Data Loss (minor) 15 | . . 5 1 3 . . . . 1 . . 5 Data Loss (major) 8 | . . 1 1 2 . . . . . . 1 3 Misfires 1 | . . . . . . . . . . . . 1 Alerts 2 | . . . . . . 1 . . . . . 1 Misdirections 1 | . . . . . . . . . . . 1 . Weapon Failures 2 | . . 1 1 . . . . . . . . . Overload Shots . | . . . . . . . . . . . . . Overflow Damage 336 | . . 24 14 134 . . . 9 . . 23 132 Projectiles . | . . . . . . . . . . . . . Explosions 120 | . . 24 . 60 . . . 9 . . 23 4 Melee 216 | . . . 14 74 . . . . . . . 128 Knockbacks 2 | . . . . 1 . . . . . . . 1 Impact 2 | . . . . 1 . . . . . . . 1 Kinetic . | . . . . . . . . . . . . . Secondary . | . . . . . . . . . . . . . Self-Inflicted Damage 708 | . . . 102 248 . . . 102 37 . 156 63 Shots 22 | . . . 1 9 . . . 5 2 . 3 2 Rammed 1 | . . . . 1 . . . . . . . . Targets Rammed 4 | . . . . 1 . . . 1 . . 2 . Kicked 3 | . . . . . . . . 1 . . 2 . Crushed . | . . . . . . . . . . . . . Highest Temperature 267 | . 66 266 233 171 72 . . 120 197 22 184 267 Average Temperature 55 | . 41 58 28 54 40 . . 39 123 16 41 87 Received Heat Transfer 3492 | . 66 420 1053 732 . . . 162 13 27 274 745 Siege Activations . | . . . . . . . . . . . . . Robots Corrupted 2 | . . . . . . . . . . . 1 1 Combat Hostiles 1 | . . . . . . . . . . . . 1 Parts Fried 10 | . . 1 3 . . . . . . . 3 3 Impact Corruptions 7 | . . . 1 3 . . . . . . . 3 Robots Melted . | . . . . . . . . . . . . . Combat Hostiles . | . . . . . . . . . . . . . Parts Melted 8 | . . 2 5 1 . . . . . . . . Heat Transferred 4779 | . . 901 2738 961 50 . . . . . 129 . Parts Sabotaged 2 | . . . . . . . . . . . . 2 Parts Stolen . | . . . . . . . . . . . . . Parts Stripped . | . . . . . . . . . . . . . Power Chain Reactions . | . . . . . . . . . . . . . Alert | -11 -10 -9 -8 -7 -6 -6 -6 -6 -6 -6 -6 -5 ------- Run | Yrd Mat Mat Mat Fac Fac Was Fac Ext Cet Arc Hub Fac Peak Influence 3217 | . 158 431 819 1151 608 142 571 3217 2053 946 1114 555 Initial 1800 | . . 62 141 303 563 142 99 251 1800 741 331 403 Average 635 | . 69 247 487 727 570 142 470 1389 1924 925 686 451 Maximum Alert Level 5 | . . 2 3 4 2 . 2 5 5 3 4 2 Low Security (%) 13 | 100 100 22 10 . . 100 6 . . . . . Level 1 19 | . . 76 21 10 . . 17 9 . . 12 11 Level 2 36 | . . 1 48 25 100 . 76 9 . . 57 88 Level 3 19 | . . . 19 59 . . . 12 . 100 29 . Level 4 2 | . . . . 4 . . . 34 . . . . Level 5 6 | . . . . . . . . . 100 . . . High Security 2 | . . . . . . . . 34 . . . . Max Security . | . . . . . . . . . . . . . Squads Dispatched 43 | . 3 4 5 10 2 . 2 6 . . 5 6 Investigation 13 | . 2 2 1 4 1 . 1 . . . . 2 Extermination 6 | . . . . 3 1 . 1 . . . . 1 Reinforcement 13 | . 1 2 3 1 . . . 2 . . 2 2 Assault 10 | . . . . 2 . . . 4 . . 3 1 Garrison 1 | . . . 1 . . . . . . . . . Intercept . | . . . . . . . . . . . . . Searches Triggered . | . . . . . . . . . . . . . Construction Impeded 3 | . . . 1 . . . . 1 . . 1 . Haulers Reinforced 1 | . . . . 1 . . . . . . . . Active Scanning Responses . | . . . . . . . . . . . . . Cargo Convoy Interrupts 1 | . . . . . . . . . . . . 1 Stealth | -11 -10 -9 -8 -7 -6 -6 -6 -6 -6 -6 -6 -5 --------- Run | Yrd Mat Mat Mat Fac Fac Was Fac Ext Cet Arc Hub Fac Distress Signals 13 | . 2 2 2 . . . . 4 2 . 1 . Communications Jammed . | . . . . . . . . . . . . . Distress Signals . | . . . . . . . . . . . . . Times Spotted 288 | . 8 32 42 44 2 . 5 58 9 3 37 48 Peak Tracking Total 25 | . 4 5 9 5 1 . 4 25 5 3 13 7 Tactical Retreats 26 | . 1 1 6 1 . . . 1 . . 1 15 Traps | -11 -10 -9 -8 -7 -6 -6 -6 -6 -6 -6 -6 -5 ------- Run | Yrd Mat Mat Mat Fac Fac Was Fac Ext Cet Arc Hub Fac Traps Triggered 8 | . 2 . 1 . 3 . . . . . . 2 Indirectly . | . . . . . . . . . . . . . Trap Hack Attempts . | . . . . . . . . . . . . . Triggered . | . . . . . . . . . . . . . Disarmed . | . . . . . . . . . . . . . Reprogrammed 6 | . . . . . . . . . . . 6 . Reused . | . . . . . . . . . . . . . Traps Extracted . | . . . . . . . . . . . . . Installed . | . . . . . . . . . . . . . Triggered 1 | . . . . . . . . . . . . 1 Machines | -11 -10 -9 -8 -7 -6 -6 -6 -6 -6 -6 -6 -5 ---------- Run | Yrd Mat Mat Mat Fac Fac Was Fac Ext Cet Arc Hub Fac Machines Disabled 50 | . . 4 2 19 . . 6 7 . 1 9 2 Max in Single Turn 9 | . . 2 2 6 . . . 1 . 1 9 2 Garrison Access 2 | . . . 1 . . . . . . . . 1 Network Hub 1 | . . . . . . . . . . . 1 . Energy Cycler 2 | . . . . . . . . 2 . . . . Machines Repaired . | . . . . . . . . . . . . . Machines Dismantled . | . . . . . . . . . . . . . Machines Sabotaged . | . . . . . . . . . . . . . Overloaded Fab Kills . | . . . . . . . . . . . . . Hacking | -11 -10 -9 -8 -7 -6 -6 -6 -6 -6 -6 -6 -5 --------- Run | Yrd Mat Mat Mat Fac Fac Was Fac Ext Cet Arc Hub Fac Machines Accessed 40 | . 3 2 5 12 1 . 3 3 2 1 3 5 Terminals 26 | . 2 2 4 6 . . 2 3 2 . 3 2 Fabricators 4 | . . . . 2 1 . . . . . . 1 Repair Stations . | . . . . . . . . . . . . . Recycling Units 3 | . 1 . . 1 . . . . . . . 1 Scanalyzers 3 | . . . . 2 . . 1 . . . . . Garrison Access 3 | . . . 1 1 . . . . . . . 1 Total Hacks 167 | . 7 7 18 47 3 . 14 9 6 25 10 21 Successful 91 | . 4 1 8 18 . . 10 4 5 25 6 10 Failed 76 | . 3 6 10 29 3 . 4 5 1 . 4 11 Catastrophic 13 | . . 1 3 4 . . . 2 . . . 3 Database Lockouts . | . . . . . . . . . . . . . Manual 53 | . 5 . 12 18 . . 5 6 1 . . 6 Terminals 97 | . 6 7 15 26 . . 9 9 6 . 10 9 Fabricators 10 | . . . . 3 3 . . . . . . 4 Repair Stations . | . . . . . . . . . . . . . Recycling Units 7 | . 1 . . 1 . . . . . . . 5 Scanalyzers 20 | . . . . 15 . . 5 . . . . . Garrison Access 8 | . . . 3 2 . . . . . . . 3 Terminal Hacks 58 | . 1 1 5 3 . . 4 4 5 25 6 4 Record 29 | . . . . . . . . . 4 25 . . Part Schematic 1 | . . . . . . . 1 . . . . . Robot Analysis 2 | . . . 1 1 . . . . . . . . Prototype ID Bank 4 | . . 1 2 . . . . 1 . . . . Open Door 3 | . . . . . . . 1 1 1 . . . Level Access Points 1 | . . . . . . . . . . . 1 . Branch Access Points 4 | . 1 . . 1 . . . 1 . . . 1 Emergency Access Points 1 | . . . . . . . . . . . 1 . Machine Index 1 | . . . . . . . . . . . 1 . Terminal Index 3 | . . . 1 . . . 1 1 . . . . Fabricator Index 1 | . . . . 1 . . . . . . . . Scanalyzer Index 1 | . . . . . . . 1 . . . . . Alert Level 3 | . . . 1 . . . . . . . 1 1 Unreport Threat 1 | . . . . . . . . . . . . 1 Locate Traps 1 | . . . . . . . . . . . 1 . Reprogram Traps 1 | . . . . . . . . . . . 1 . Zone Layout 1 | . . . . . . . . . . . . 1 Fabricator Hacks 5 | . . . . 2 . . . . . . . 3 Network Status 2 | . . . . 1 . . . . . . . 1 Load Schematic 1 | . . . . . . . . . . . . 1 Build 2 | . . . . 1 . . . . . . . 1 Repair Station Hacks . | . . . . . . . . . . . . . Recycling Unit Hacks 2 | . . . . 1 . . . . . . . 1 Report Inventory 2 | . . . . 1 . . . . . . . 1 Scanalyzer 11 | . . . . 6 . . 5 . . . . . Insert Component 5 | . . . . 3 . . 2 . . . . . Analyze 6 | . . . . 3 . . 3 . . . . . Garrison Access Hacks 2 | . . . 1 . . . . . . . . 1 Seal Access 2 | . . . 1 . . . . . . . . 1 Unauthorized Hacks 13 | . 3 . 2 6 . . 1 . . . . 1 Terminals 10 | . 2 . 2 5 . . 1 . . . . . Assimilate 2 | . . . . 2 . . . . . . . . Botnet 8 | . 2 . 2 3 . . 1 . . . . . Fabricators . | . . . . . . . . . . . . . Repair Stations . | . . . . . . . . . . . . . Recycling Units 2 | . 1 . . . . . . . . . . 1 Tunnel 2 | . 1 . . . . . . . . . . 1 Scanalyzers . | . . . . . . . . . . . . . Garrison Access 1 | . . . . 1 . . . . . . . . Reprogram 1 | . . . . 1 . . . . . . . . Data Cores Recovered 4 | . . . . . . . 2 1 . . 1 . Used . | . . . . . . . . . . . . . Hacking Detections 33 | . 2 2 5 11 1 . 2 1 1 . 3 5 Full Trace Events 9 | . 1 2 1 3 . . 1 . . . . 1 Feedback Events . | . . . . . . . . . . . . . Feedback Blocked . | . . . . . . . . . . . . . Robot Schematics Acquired . | . . . . . . . . . . . . . Robots Built . | . . . . . . . . . . . . . Authchips . | . . . . . . . . . . . . . Time . | . . . . . . . . . . . . . Total Robot Build Rating . | . . . . . . . . . . . . . Part Schematics Acquired 6 | . . . . 3 . . 3 . . . . . Parts Built 4 | . . . . 2 . . . . . . . 2 Authchips . | . . . . . . . . . . . . . Time 223 | . . . . 117 . . . . . . . 106 Total Part Build Rating 26 | . . . . 14 . . . . . . . 12 Parts Repaired . | . . . . . . . . . . . . . Time . | . . . . . . . . . . . . . Parts Recycled . | . . . . . . . . . . . . . Recycled Matter . | . . . . . . . . . . . . . Retrieved Matter . | . . . . . . . . . . . . . Retrieved Components . | . . . . . . . . . . . . . Parts Scanalyzed 5 | . . . . 3 . . 2 . . . . . Part Schematics Acquired 5 | . . . . 3 . . 2 . . . . . Parts Damaged . | . . . . . . . . . . . . . Bothacking | -11 -10 -9 -8 -7 -6 -6 -6 -6 -6 -6 -6 -5 ------------ Run | Yrd Mat Mat Mat Fac Fac Was Fac Ext Cet Arc Hub Fac Used RIF Installer . | . . . . . . . . . . . . . Robots Hacked . | . . . . . . . . . . . . . Non-combat . | . . . . . . . . . . . . . Combat . | . . . . . . . . . . . . . Robot Hacks Applied . | . . . . . . . . . . . . . Relay Couplers Released 3 | . . . . . . . 3 . . . . . Programmers 3 | . . . . . . . 3 . . . . . Fabnet Peak Effective % . | . . . . . . . . . . . . . Robots Rewired 11 | . . . . . . . . 11 . . . . Allies Hacked 1 | . . . . . . . 1 . . . . . Hacks Repelled . | . . . . . . . . . . . . . Allies | -11 -10 -9 -8 -7 -6 -6 -6 -6 -6 -6 -6 -5 -------- Run | Yrd Mat Mat Mat Fac Fac Was Fac Ext Cet Arc Hub Fac Total Allies 42 | . . . . 3 . 20 . 14 5 . . . Largest Group 25 | . . . . 1 . 20 20 25 13 10 9 . Highest-Rated Group 1034 | . . . . 27 . 848 848 1034 894 639 481 . Highest-Rated Ally 159 | . . . . 27 . 50 50 159 159 153 96 . Total Orders . | . . . . . . . . . . . . . Ally Attacks 425 | . . . . . . . 34 207 74 25 85 . Total Damage 15018 | . . . . . . . 2367 7514 1802 634 2701 . Kills 94 | . . . . . . . 18 50 8 4 14 . Allies Corrupted 4 | . . . . . . . . 4 . . . . Allies Melted 3 | . . . . . . . . 1 . . 2 . Intel | -11 -10 -9 -8 -7 -6 -6 -6 -6 -6 -6 -6 -5 ------- Run | Yrd Mat Mat Mat Fac Fac Was Fac Ext Cet Arc Hub Fac Robot Analysis Total 2 | . . . 1 1 . . . . . . . . Derelict Logs Recovered . | . . . . . . . . . . . . . Drone Launches . | . . . . . . . . . . . . . Drone Recoveries . | . . . . . . . . . . . . . Exploration | -11 -10 -9 -8 -7 -6 -6 -6 -6 -6 -6 -6 -5 ------------- Run | Yrd Mat Mat Mat Fac Fac Was Fac Ext Cet Arc Hub Fac Turns Passed 8723 | 109 323 1268 816 1862 416 311 563 520 564 216 445 1310 Spaces Moved 5777 | 70 178 489 419 1183 354 292 546 348 439 164 331 964 Core 144 | 3 . . . . . . . . . . . 141 Treads 654 | 25 178 147 . 210 . . . . . . . 94 Legs 2429 | 42 . 342 288 305 . . . 188 439 164 331 330 Wheels 2036 | . . . . 668 354 292 546 160 . . . 16 Hover 514 | . . . 131 . . . . . . . . 383 Flight . | . . . . . . . . . . . . . Fastest Speed 48 | 50 160 160 48 85 93 95 100 100 120 120 120 50 Average Speed 117 | 131 160 189 101 117 103 99 100 110 120 120 120 101 Slowest Speed 850 | 160 160 260 190 240 105 100 100 120 120 120 190 850 Overloaded Moves . | . . . . . . . . . . . . . Propulsion Burnouts . | . . . . . . . . . . . . . Robots Hopped . | . . . . . . . . . . . . . Cave-ins Triggered . | . . . . . . . . . . . . . Exploration Rate (%) 43 | 5 32 47 39 27 11 93 13 59 88 97 31 22 Regions Visited 12 Branch Regions 4 Pre-discovered Areas 2 | . 1 . . . . . . . . . . 1 Known Exits Taken 4 | . . . . 1 . . 1 1 . . 1 . Unknown Exits Taken 6 | 1 1 1 1 . . . . . 1 1 . . Scrap Searched . | . . . . . . . . . . . . . Spaces Dug 11 | . . . 1 6 . . . . . . . 4 Terrain Destroyed 842 | . . 9 59 318 . . . 99 108 . 245 4 Melee 11 | . . . 1 6 . . . . . . . 4 Projectile 3 | . . . 1 2 . . . . . . . . AOE 828 | . . 9 57 310 . . . 99 108 . 245 . Terrain Rammed . | . . . . . . . . . . . . . Walls Destroyed . | . . . . . . . . . . . . . Machines Disabled . | . . . . . . . . . . . . . Actions | -11 -10 -9 -8 -7 -6 -6 -6 -6 -6 -6 -6 -5 --------- Run | Yrd Mat Mat Mat Fac Fac Was Fac Ext Cet Arc Hub Fac Total 6891 | 83 192 652 606 1432 398 315 563 462 468 181 358 1181 Wait 182 | 2 . 1 18 47 15 . 13 . 13 16 3 54 Move 5766 | 69 177 488 418 1182 354 291 545 347 438 163 330 964 Hop . | . . . . . . . . . . . . . Pick Up 106 | 3 3 15 17 21 5 7 2 9 1 . 1 22 Fast Attach 78 | 6 . 9 7 11 4 3 . 3 2 . 1 32 Attach 67 | . . 11 18 12 3 1 . . 1 . 5 16 Detach 33 | . . 7 7 4 3 1 . . 2 . . 9 Swap 59 | 3 . 8 9 13 4 1 1 6 5 . 3 6 Drop 85 | . . 10 9 19 7 9 2 11 4 . 3 11 Fire 334 | . 12 103 101 97 2 . . 3 2 2 10 2 Melee 98 | . . . 2 25 1 1 . 6 . . . 63 Ram . | . . . . . . . . . . . . . Kick 3 | . . . . . . . . 1 . . 2 . Crush 1 | . . . . 1 . . . . . . . . Escape Stasis 2 | . . . . . . . . . . . . 2 Rewire 77 | . . . . . . 1 . 76 . . . . Trap . | . . . . . . . . . . . . . Miscellaneous . | . . . . . . . . . . . . . Route ------- -11/Scrapyard -10/Materials (discovered 2 exits: *Mat / Min) -9/Materials -8/Materials -7/Factory (discovered 5 exits: *Fac x2 / Sto / Low x2) -6/Factory -6/Waste -6/Factory (discovered 2 exits: *Fac / *Ext) -6/Extension (discovered 3 exits: *Fac x2 / *Cet) -6/Cetus (discovered 2 exits: *Fac / *Arc) -6/Archives (discovered 3 exits: *Fac / *Hub x2) -6/Hub_04(d) (discovered 4 exits: *Fac x4) -5/Factory (discovered 3 exits: [*Fac] / Upp x2) History --------- Turn | Location | Event 6 | -11/Scrapyard | Discovered new exit (range 16) 110 | -11/Scrapyard | Entered Materials 227 | -10/Materials | Identified exit to Mines 301 | -10/Materials | Build established: Mutant 415 | -10/Materials | Discovered new exit (range 11) 433 | -10/Materials | Entered another Materials area 433 | -9/Materials | Evolved 2 slots: Utility x2 840 | -9/Materials | Lost 4 parts (1n1u2w) 1571 | -9/Materials | Build established: Scavenger-Mutant 1682 | -9/Materials | Discovered new exit (range 11) 1701 | -9/Materials | Entered another Materials area 1701 | -8/Materials | Evolved 2 slots: Propulsion x2 1904 | -8/Materials | Lost 11 parts (1p4n3u3w) 1975 | -8/Materials | Garrison activated, responded to threat 2048 | -8/Materials | Build established: Mutant 2293 | -8/Materials | Core integrity fell below 50% 2376 | -8/Materials | Destroyed 9 combat bots 2377 | -8/Materials | Lost 3 parts (3n) 2431 | -8/Materials | Found Prototype Launcher 2431 | -8/Materials | Identified Rocket Array 2437 | -8/Materials | Found Faulty Rocket Array 2439 | -8/Materials | Found Rocket Array 2441 | -8/Materials | Found Rocket Array 2509 | -8/Materials | Discovered new exit (range 7) 2517 | -8/Materials | Entered Factory 2517 | -7/Factory | Evolved 2 slots: Utility x2 2743 | -7/Factory | Fabricated Lgt. Antimatter Reactor? 2822 | -7/Factory | Build established: Scavenger-Assassin 2917 | -7/Factory | First assault squad dispatched 3292 | -7/Factory | Discovered new exit (range 15) 3655 | -7/Factory | Build established: Scavenger-Skirmisher 3742 | -7/Factory | Identified exit to Storage 3742 | -7/Factory | Identified exit to Lower Caves 3929 | -7/Factory | Core integrity fell below 50% 3968 | -7/Factory | Lost 5 parts (1p2n2w) 4236 | -7/Factory | Lost 3 parts (1p2n) 4315 | -7/Factory | Discovered new exit (range 6) 4334 | -7/Factory | Identified exit to Factory 4379 | -7/Factory | Entered another Factory area 4379 | -6/Factory | Evolved 2 slots: Utility x2 4795 | -6/Factory | Sucked down chute 4795 | -6/Factory | Entered Waste 4796 | -6/Waste | Joined by Warlord forces that had cleared the area 5054 | -6/Waste | Discovered new exit (range 11) 5060 | -6/Waste | Build established: Hacker-Gladiator 5099 | -6/Waste | Identified exit to Factory 5106 | -6/Waste | Entered Factory 5106 | -6/Factory | Accompanied by 20 allies 5201 | -6/Factory | Discovered new exit (range 13) 5215 | -6/Factory | Identified exit to Factory 5243 | -6/Factory | Discovered new exit (range 5) 5245 | -6/Factory | Identified exit to Extension 5639 | -6/Factory | Lost 6 allies 5669 | -6/Factory | Entered Extension 5669 | -6/Extension | Accompanied by 13 allies 5693 | -6/Extension | Disrupted transfer network 5721 | -6/Extension | Rescued A7 5738 | -6/Extension | Build established: Scavenger-Gladiator 5808 | -6/Extension | Identified exit to Cetus 5809 | -6/Extension | Energy Cycler disabled 5809 | -6/Extension | Rescued a captive Derelict 5810 | -6/Extension | Rescued a captive Derelict 5810 | -6/Extension | Rescued a captive Derelict 5811 | -6/Extension | Rescued a captive Derelict 5813 | -6/Extension | Rescued a captive Derelict 5818 | -6/Extension | Rescued a captive Derelict 5821 | -6/Extension | Rescued a captive Derelict 5999 | -6/Extension | Spotted B-75 Beast 6009 | -6/Extension | High security lockdown imminent 6011 | -6/Extension | Spotted B-75 Beast 6015 | -6/Extension | Allies destroyed B-75 Beast 6018 | -6/Extension | Allies destroyed B-75 Beast 6023 | -6/Extension | Discovered exit to Factory (range 15) 6041 | -6/Extension | Lost 9 allies 6089 | -6/Extension | High security lockdown engaged 6150 | -6/Extension | Discovered exit to Factory (range 15) 6160 | -6/Extension | Destroyed 18 combat bots 6184 | -6/Extension | Lost 3 allies 6189 | -6/Extension | Entered Cetus 6189 | -6/Cetus | Accompanied by 12 allies (A7) 6194 | -6/Cetus | Acquired a Cetus Manufacturing Module code from A7 6206 | -6/Cetus | Spotted Cetus Guard 6206 | -6/Cetus | Spotted Cetus Guard 6211 | -6/Cetus | Spotted Cetus Guard 6211 | -6/Cetus | Spotted Cetus Guard 6214 | -6/Cetus | Allies destroyed Cetus Guard 6215 | -6/Cetus | Destroyed Cetus Guard 6220 | -6/Cetus | Allies destroyed Cetus Guard 6223 | -6/Cetus | Allies destroyed Cetus Guard 6249 | -6/Cetus | Lost 4 allies 6300 | -6/Cetus | Started Cetus Manufacturing Module 6315 | -6/Cetus | Escorted A7 to Cetus Mainframe 6325 | -6/Cetus | Manufactured an Enhanced Grunt 6350 | -6/Cetus | Manufactured an Enhanced Grunt 6375 | -6/Cetus | Manufactured an Enhanced Grunt 6400 | -6/Cetus | Manufactured an Enhanced Grunt 6425 | -6/Cetus | Manufactured an Enhanced Grunt 6438 | -6/Cetus | Discovered new exit (range 15) 6461 | -6/Cetus | Spotted Cetus Guard 6462 | -6/Cetus | Spotted Cetus Guard 6467 | -6/Cetus | Spotted Cetus Guard 6468 | -6/Cetus | Spotted Cetus Guard 6474 | -6/Cetus | Allies destroyed Cetus Guard 6483 | -6/Cetus | Allies destroyed Cetus Guard 6484 | -6/Cetus | Allies destroyed Cetus Guard 6486 | -6/Cetus | Discovered exit to Factory (range 16) 6488 | -6/Cetus | Allies destroyed Cetus Guard 6494 | -6/Cetus | Met Revision 17 6500 | -6/Cetus | Lost 3 allies 6567 | -6/Cetus | Build established: Hacker-Mutant 6753 | -6/Cetus | Entered Archives 6753 | -6/Archives | Accompanied by 10 allies (A7) 6760 | -6/Archives | Received a hacking code to weaken MAIN.C 6781 | -6/Archives | Unable to access archive contents 6797 | -6/Archives | Unable to access archive contents 6801 | -6/Archives | Discovered exit to Factory (range 15) 6810 | -6/Archives | Unable to access archive contents 6826 | -6/Archives | Discovered new exit (range 14) 6871 | -6/Archives | Unable to access archive contents 6927 | -6/Archives | Discovered new exit (range 15) 6969 | -6/Archives | Entered Hub_04(d) 6969 | -6/Hub_04(d) | Accompanied by 9 allies 7180 | -6/Hub_04(d) | Spotted B-75 Beast 7310 | -6/Hub_04(d) | Network Hub disabled 7311 | -6/Hub_04(d) | Spotted Lightning 7319 | -6/Hub_04(d) | First assault squad dispatched 7319 | -6/Hub_04(d) | System corruption reached 10% 7320 | -6/Hub_04(d) | Destroyed Lightning 7323 | -6/Hub_04(d) | Spotted Lightning 7324 | -6/Hub_04(d) | Spotted Lightning 7355 | -6/Hub_04(d) | Core integrity fell below 50% 7389 | -6/Hub_04(d) | Lost 10 parts (1p4n2u3w) 7414 | -6/Hub_04(d) | Entered Factory 7414 | -5/Factory | Evolved 2 slots: Utility x2 7714 | -5/Factory | First assault squad dispatched 7744 | -5/Factory | Discovered new exit (range 16) 8014 | -5/Factory | Lost 7 parts (2p4n1u) 8024 | -5/Factory | Build established: Hacker-Gladiator 8231 | -5/Factory | Assembled infested ambush trap array 8311 | -5/Factory | Lost 8 parts (4n4u) 8386 | -5/Factory | Core integrity fell below 50% 8447 | -5/Factory | Spotted B-75 Beast 8554 | -5/Factory | Fabricated Antigrav System? 8592 | -5/Factory | Core integrity fell below 20% 8610 | -5/Factory | Lost 5 parts (1p1n2u1w) 8640 | -5/Factory | Identified exit to Upper Caves 8656 | -5/Factory | Cargo convoy interrupted 8724 | -5/Factory | Destroyed by G-50 Soldier with Heavy Laser Last Messages --------------- 08703_ K-01 Serf collects debris. 08705_ Connecting with Terminal... >>Alert(Check) Current Alert Level: 2-M >>Alert(Purge) Purged threat record, alert level lowered. >>Layout(Zone) Retrieving Zone 6U layout... Downloaded map data. 08706_ Antigrav System destroyed. 08706_ Critical hit (Burn: +37). 08708_ Dropped Med. Storage Unit. 08708_ K-01 Serf cleans the Power Conduit. 08710_ G-50 Soldier Lgt. Angular Momentum Engine severed. 08713_ System corrupted: Energy discharge (-96). 08714_ Hvy. Pick follow-up attack on G-50 Soldier. 08717_ G-50 Soldier destroyed. 08718_ Antigrav System destroyed. 08722_ K-01 Serf collects debris. 08723_ G-50 Soldier Carbon-fiber Leg severed. Map ----- +----------------------------------------------------+ | ?????????????????????????????????????????????????? | | ?????????????????????????????????????????????????? | | ?????????????????????????????????????????????????? | | ?????????????????????????????????????????????????? | | ?????????????????????????????????????????????????? | | ?????????????????????????????????????????????????? | | ?????????????????????????????????????????????????? | | ?????????????????????????????????????????????????? | | ?????????????????????????????????????????????????? | | ?????????????????????????????????????????????????? | | ?????????????????????????????????????????????????? | | ???????????????????? ??????????????????????????? | | ?????????????##### # #????# ?????? | | ????????????? # #????# ?????? | | ????????????? ########+########## ?????? | | ????????????? " + ?????? | | ????????????" """ """ ################ ?????? | | ????????????" """ G ######?????????# ?????? | | ????????????" """ """ # #?????????# ?????? | | ??????? ?? " # #?????????###?????? | | ???????"" """ """ # #############?????? | | ????? """ """ """ # # ?????? | | ???? """ """ """ + ? ?????? | | ????? k =# # ?????? | | ???????? =g*# # ?????? | | #??##+????# ######/##@###### """ """ ?????? | | ???# ????# # g!! # """ """ ?????? | | ???# ????# #= "T" # """ """ ?????? | | ???# * ??# + ! / # ?????? | | ???# ??# #! # """ """ ?????? | | ???# """## # """"""""" # """ R" ?????? | | ???# """## # # """ """ ?????? | | ???# """## ################ ?????? | | ???# ""## #################/##########?????? | | ???# ""## ?????? | | ???# ## H ?????? | | ???# + ?????? | | ???# ## ?????? | | ???###+#### ?????? | | ?????# #??# ###+#############+##### ?????? | | ?????# #??# # ## # ?????? | | ####?# #??# # ## # ?????? | | #?# #??# # ## """"""""" # ?????? | | #?# #??# #????????????????????????????????? | | #?#*#??# #????????????????????????????????? | | #?# #??# #????????????????????????????????? | | ###=#### #????????????????????????????????? | | # ! #????????????????????????????????? | | # #????????????????????????????????? | | # #????????????????????????????????? | +----------------------------------------------------+ Best States ------------- Heat Dissipation 64 Energy Generation 21 Energy Capacity 300 Matter Stores 300 Matter Capacity 300 Sight Range 16 Robot Scan Range 15 Terrain Scan Density 85 Armor Coverage 225 Resistance: EM 20 Utility Shielding 33 Melee Speed Boost 20 Evasion (%) 59 Targeting Accuracy 11 Melee Accuracy 12 Target Analysis 5 Core Analysis 6 Recoil Reduction 2 Offensive Hacking 32 Defensive Hacking 22 Item Schematics ----------------- Trap Scanner | -7/Factory | Scanalyzed Adv. Heat Sink | -7/Factory | Scanalyzed Rocket Array | -7/Factory | Scanalyzed Antigrav System | -6/Factory | Hacked Cld. Fission Core | -6/Factory | Scanalyzed Myomer Leg | -6/Factory | Scanalyzed Robot Schematics ------------------ None Fabricated ------------ Lgt. Antimatter Reactor | x2 | -7/Factory | Preloaded Antigrav System | x2 | -5/Factory Alien Tech Used ----------------- None Achievements -------------- Batter Up Brute Force Generalissimo Main Advantage Project G-00 Revising The Future Challenges ------------ None Game ------ Seed RelayGodShockpuncher Manual? 0 Play Time 01:21:23 Cumulative 66.6 hours Start 2024.07.17 @ 01:33:39 End 2024.07.17 @ 02:55:51 Sessions 1 Manual Loads 0 Difficulty Rogue Special Mode None Game No. 70 Rogue 70 Adventurer 0 Explorer 0 Win Type - Total 0 Types 0/0/0/0/0/0/0/0/0 Lore% 48 Gallery% 55 Achievement% 39 Wizard Run 0 Options --------- Layout 0 ASCII 0 Keyboard 1 Movement Numpad Keybinds 0 Fullscreen 2 Font 18/SmallcapsGlow Map View 76x50 Zoom Use 0% Tactical HUD 1 Map Filters NONE Filters NONE Steam 1 RUN: 801b59c3-acb2-4159-a7a3-b4f467068113